Cogmind - Beta 11.1 @@@ ROGUE MODE // 2022.05.05 @ 20:47:39 Player: kway_side Result: Destroyed by as-90735 with Assembled Rifle Performance ------------- Evolutions (0) 0 Regions Visited (2) 400 Robots Destroyed (30) 150 Value Destroyed (796) 796 Prototype IDs (0) 0 Alien Tech Used (0) 0 Bonus (0) 0 TOTAL SCORE: 1346 Bonus ------- None Cogmind --------- Core Integrity 0/250 Matter 294/300 Energy 237/265 System Corruption 7% Temperature Cool (66) Movement Walking (330) Ox3 Location -10/Mines Parts ------- > --- POWER (1) -------- Improved Ion Engine > --- PROPULSION (2) --- Aluminum Leg Carbon-fiber Leg > --- UTILITY (2) ------ Huge Storage Unit Light Armor Plating > --- WEAPON (2) ------- Small Laser Beamcaster > --- INVENTORY (25) --- Ion Engine Light Angular Momentum Engine Improved Heat Sink Large Storage Unit Sensor Array Sensor Array Signal Interpreter Terrain Scanner Improved Terrain Scanner Seismic Detector Improved Targeting Computer Utility Shielding Light Armor Plating Hacking Suite Small Laser Mining Laser Peak State ------------ > --- POWER ------------ Improved Ion Engine > --- PROPULSION ------- Aluminum Leg Carbon-fiber Leg > --- UTILITY ---------- Huge Storage Unit Light Armor Plating > --- WEAPON ----------- Small Laser Beamcaster > --- INVENTORY -------- Ion Engine Light Angular Momentum Engine Light Treads Improved Heat Sink Large Storage Unit Sensor Array Sensor Array Terrain Scanner Seismic Detector Utility Shielding Light Armor Plating Hacking Suite Small Laser [Rating: 16] Favorites ----------- Power Improved Ion Engine Engine Improved Ion Engine Propulsion Light Treads Treads Light Treads Leg Aluminum Leg Utility High-capacity Storage Unit Storage High-capacity Storage Unit Processor Improved Targeting Computer Protection Light Armor Plating Weapon Medium Laser Energy Gun Medium Laser Ballistic Cannon Light Cannon Build | -11 -10 -10 ------- Run | Scr Mat Min Slots Evolved . | . . . Power . | . . . Propulsion . | . . . Utility . | . . . Weapon . | . . . Parts Attached 28 | . 21 7 Power 5 | . 5 . Engine 5 | . 5 . Core . | . . . Reactor . | . . . Propulsion 6 | . 4 2 Treads 4 | . 4 . Leg 2 | . . 2 Wheel . | . . . Hover . | . . . Flight . | . . . Utility 9 | . 7 2 Device . | . . . Storage 3 | . 2 1 Processor 1 | . 1 . Hackware . | . . . Protection 5 | . 4 1 Artifact . | . . . Weapon 8 | . 5 3 Energy Gun 7 | . 4 3 Energy Cannon . | . . . Ballistic Gun . | . . . Ballistic Cannon 1 | . 1 . Launcher . | . . . Special Weapon . | . . . Impact Weapon . | . . . Slashing Weapon . | . . . Piercing Weapon . | . . . Special Melee Weapon . | . . . Unidentified Prototypes . | . . . Parts Lost 7 | . 3 4 Power . | . . . Propulsion . | . . . Utility 3 | . 1 2 Weapon 4 | . 2 2 Highest Loss Streak 2 | . 1 2 To Critical Strikes . | . . . Average Slot Usage (%) 98 | . 99 95 Engine 13 | . 13 14 Treads 25 | . 26 9 Leg 2 | . 1 18 Storage 14 | . 14 13 Processor 2 | . 2 4 Protection 10 | . 10 7 Energy Gun 22 | . 22 20 Ballistic Cannon 4 | . 4 6 Naked Turns . | . . . Heaviest Build 96 | 12 92 96 Greatest Support 40 | 20 40 40 Greatest Overweight (x) 4 | . 4 3 Average Overweight (x) 1 | . 1 1 Largest Inventory Capacity 25 | 8 25 25 Average Capacity 20 | 8 20 20 Most Carried 20 | 6 20 20 Average Carried 14 | 6 14 14 Final Capacity 25 | 8 20 25 Final Carried 20 | 6 20 16 Class Distribution -------------------- 100% | Mutant Dominant Class ---------------- Mutant | -10/Materials Mutant | -10/Mines Resources | -11 -10 -10 ----------- Run | Scr Mat Min Matter Collected 623 | 196 302 125 Remotely . | . . . Salvage Created 1091 | . 1020 71 Parts 63 | . 63 . Haulers Intercepted 1 | . 1 . Recyclers Shooed 2 | . 2 . Parts Field Recycled . | . . . Retrieved Matter . | . . . Parts Self-Destructed . | . . . Prevented . | . . . Kills | -11 -10 -10 ------- Run | Scr Mat Min Combat Hostiles Destroyed 28 | . 22 6 Guns 25 | . 20 5 Cannons 3 | . 2 1 Classes Destroyed 8 | . 7 1 Builder 1 | . 1 . Tunneler 1 | . 1 . Hauler 1 | . 1 . Operator 2 | . 2 . Watcher 3 | . 3 . Swarmer 3 | . 3 . Grunt 19 | . 19 . Assembled 6 | . . 6 Best Kill Streak 6 | . 6 3 Combat Bots Only 4 | . 4 3 Max Kills in Single Turn 2 | . 2 1 Gunslinging 1 | . 1 . Exploded . | . . . Melee . | . . . Uniques/NPCs Destroyed . | . . . Combat | -11 -10 -10 -------- Run | Scr Mat Min Damage Taken 1509 | . 1103 406 Core 250 | . 186 64 Absorbed by Shields . | . . . Redirected to Shielding 5 | . 5 . Core Remaining (%) 100 | 100 . . Volleys Fired 104 | . 82 22 Largest 2 | . 2 2 Hottest 115 | . 90 115 Shots Fired 192 | . 153 39 Gun 169 | . 145 24 Cannon 23 | . 8 15 Launcher . | . . . Special . | . . . Kinetic 23 | . 8 15 Thermal 150 | . 126 24 Explosive . | . . . Electromagnetic 19 | . 19 . Robot Hit Streak 16 | . 16 6 Robot Miss Streak 5 | . 3 5 Penetration Max . | . . . Secondary Targets 4 | . 4 . Max Gunslinging Chain 1 | . 1 . Shots Hit Robots 126 | . 107 19 Core Hits 60 | . 50 10 Critical Kills . | . . . Critical Parts Destroyed . | . . . Critical Strikes 7 | . 7 . Burn 7 | . 7 . Melee Attacks . | . . . Impact . | . . . Slashing . | . . . Piercing . | . . . Sneak Attacks . | . . . Combat Hostiles . | . . . Follow-up Attacks . | . . . Damage Inflicted 1753 | . 1406 347 Guns 1422 | . 1215 207 Cannons 229 | . 89 140 Explosions 96 | . 96 . Melee . | . . . Ramming 6 | . 6 . Kinetic 229 | . 89 140 Thermal 1327 | . 1120 207 Explosive . | . . . Electromagnetic 191 | . 191 . Impact . | . . . Slashing . | . . . Piercing . | . . . Highest Corruption 7 | . . 7 Average Corruption 6 | . . 6 Corruption Purged . | . . . Corruption Blocked . | . . . Effects 9 | . . 9 Message Errors 3 | . . 3 Matter Fused 2 | . . 2 Heat Flow Errors 1 | . . 1 Data Loss (minor) 1 | . . 1 Alerts 1 | . . 1 Weapon Failures 1 | . . 1 Overload Shots . | . . . Overflow Damage 6 | . . 6 Projectiles 6 | . . 6 Explosions . | . . . Melee . | . . . Knockbacks 6 | . 2 4 Impact . | . . . Kinetic 5 | . 1 4 Secondary 1 | . 1 . Self-Inflicted Damage . | . . . Shots . | . . . Rammed 2 | . 2 . Targets Rammed 2 | . 2 . Kicked . | . . . Crushed . | . . . Highest Temperature 508 | . 508 403 Average Temperature 147 | . 155 115 Received Heat Transfer 761 | . 621 140 Effects 20 | . 16 4 Shutdowns 3 | . 2 1 Energy Bleed 6 | . 5 1 Interference 3 | . 1 2 Matter Decay 1 | . 1 . Short Circuit 3 | . 3 . Damage (major) 4 | . 4 . Siege Activations . | . . . Robots Corrupted . | . . . Combat Hostiles . | . . . Parts Fried . | . . . Impact Corruptions . | . . . Robots Melted . | . . . Combat Hostiles . | . . . Parts Melted 9 | . 9 . Heat Transferred 3802 | . 3418 384 Parts Sabotaged . | . . . Parts Stolen . | . . . Parts Stripped . | . . . Power Chain Reactions 1 | . 1 . Missiles Intercepted . | . . . Alert | -11 -10 -10 ------- Run | Scr Mat Min Peak Influence 281 | . 281 54 Initial 54 | . . 54 Average 134 | . 145 27 Maximum Alert Level 1 | . 1 . Low Security (%) 77 | 100 75 100 Level 1 22 | . 24 . Level 2 . | . . . Level 3 . | . . . Level 4 . | . . . Level 5 . | . . . High Security . | . . . Max Security . | . . . Squads Dispatched 7 | . 7 . Investigation 5 | . 5 . Extermination . | . . . Reinforcement 2 | . 2 . Assault . | . . . Garrison . | . . . Intercept . | . . . Searches Triggered . | . . . Construction Impeded . | . . . Haulers Reinforced . | . . . Active Scanning Responses . | . . . Cargo Convoy Interrupts . | . . . Stealth | -11 -10 -10 --------- Run | Scr Mat Min Distress Signals 2 | . 1 1 Communications Jammed . | . . . Distress Signals . | . . . Times Spotted 41 | . 31 10 Peak Tracking Total 5 | . 5 3 Tactical Retreats 3 | . 3 . Traps | -11 -10 -10 ------- Run | Scr Mat Min Traps Triggered 4 | . 3 1 Indirectly . | . . . Trap Hack Attempts . | . . . Triggered . | . . . Disarmed . | . . . Reprogrammed . | . . . Reused . | . . . Traps Extracted . | . . . Installed . | . . . Triggered . | . . . Machines | -11 -10 -10 ---------- Run | Scr Mat Min Machines Disabled . | . . . Max in Single Turn . | . . . Machines Sabotaged . | . . . Garrisons Compromised . | . . . Overloaded Fab Kills . | . . . Hacking | -11 -10 -10 --------- Run | Scr Mat Min Machines Accessed 4 | . 3 1 Terminals 3 | . 3 . Fabricators . | . . . Repair Stations . | . . . Recycling Units . | . . . Scanalyzers . | . . . Garrison Access . | . . . Total Hacks 11 | . 10 1 Successful 4 | . 3 1 Failed 7 | . 7 . Catastrophic 1 | . 1 . Database Lockouts . | . . . Manual 4 | . 4 . Terminals 10 | . 10 . Fabricators . | . . . Repair Stations . | . . . Recycling Units . | . . . Scanalyzers . | . . . Garrison Access . | . . . Terminal Hacks 3 | . 2 1 Robot Analysis 1 | . 1 . Open Door 1 | . . 1 Hauler Manifests 1 | . 1 . Fabricator Hacks . | . . . Repair Station Hacks . | . . . Recycling Unit Hacks . | . . . Scanalyzer . | . . . Garrison Access Hacks . | . . . Unauthorized Hacks 1 | . 1 . Terminals 1 | . 1 . Operators 1 | . 1 . Fabricators . | . . . Repair Stations . | . . . Recycling Units . | . . . Scanalyzers . | . . . Garrison Access . | . . . Data Cores Recovered . | . . . Used . | . . . Hacking Detections 3 | . 3 . Full Trace Events 3 | . 3 . Feedback Events . | . . . Feedback Blocked . | . . . Robot Schematics Acquired . | . . . Robots Built . | . . . Authchips . | . . . Time . | . . . Total Robot Build Rating . | . . . Part Schematics Acquired . | . . . Parts Built . | . . . Authchips . | . . . Time . | . . . Total Part Build Rating . | . . . Parts Repaired . | . . . Time . | . . . Parts Recycled . | . . . Recycled Matter . | . . . Retrieved Matter . | . . . Retrieved Components . | . . . Parts Scanalyzed . | . . . Part Schematics Acquired . | . . . Parts Damaged . | . . . Bothacking | -11 -10 -10 ------------ Run | Scr Mat Min Used RIF Installer . | . . . Robots Hacked . | . . . Non-combat . | . . . Combat . | . . . Robot Hacks Applied . | . . . Relay Couplers Released . | . . . Fabnet Peak Effective % . | . . . Robots Rewired . | . . . Allies Hacked . | . . . Hacks Repelled . | . . . Allies | -11 -10 -10 -------- Run | Scr Mat Min Total Allies . | . . . Largest Group . | . . . Highest-Rated Group . | . . . Highest-Rated Ally . | . . . Total Orders . | . . . Ally Attacks . | . . . Total Damage . | . . . Kills . | . . . Allies Corrupted . | . . . Allies Melted . | . . . Intel | -11 -10 -10 ------- Run | Scr Mat Min Robot Analysis Total 1 | . 1 . Derelict Logs Recovered . | . . . Drone Launches . | . . . Drone Recoveries . | . . . Exploration | -11 -10 -10 ------------- Run | Scr Mat Min Turns Passed 3139 | 2 2839 298 Spaces Moved 1075 | 2 994 79 Core . | . . . Treads 994 | . 963 31 Legs 81 | 2 31 48 Wheels . | . . . Hover . | . . . Flight . | . . . Fastest Speed 120 | 120 120 120 Average Speed 247 | 120 246 271 Slowest Speed 400 | 120 400 330 Overloaded Moves . | . . . Propulsion Burnouts . | . . . Robots Hopped . | . . . Cave-ins Triggered . | . . . Exploration Rate (%) 39 | 2 98 18 Regions Visited 2 Branch Regions 1 Pre-discovered Areas . | . . . Known Exits Taken . | . . . Unknown Exits Taken 2 | 1 1 . Scrap Searched . | . . . Spaces Dug . | . . . Terrain Destroyed 5 | . 5 . Melee . | . . . Projectile . | . . . AOE 5 | . 5 . Terrain Rammed . | . . . Walls Destroyed . | . . . Machines Disabled . | . . . Actions | -11 -10 -10 --------- Run | Scr Mat Min Total 1355 | 1 1229 125 Wait 95 | . 95 . Move 1073 | 1 993 79 Hop . | . . . Pick Up 35 | . 23 12 Fast Attach 6 | . 2 4 Attach 9 | . 6 3 Detach 3 | . 2 1 Swap 13 | . 13 . Drop 15 | . 11 4 Fire 104 | . 82 22 Melee . | . . . Ram . | . . . Kick . | . . . Crush 2 | . 2 . Escape Stasis . | . . . Rewire . | . . . Trap . | . . . Miscellaneous . | . . . Route ------- -11/Scrapyard -10/Materials (discovered 5 exits: [*Mat x3] / *Min x2) -10/Mines History --------- Turn | Location | Event 1 | -11/Scrapyard | Discovered new exit (range 1) 3 | -11/Scrapyard | Entered Materials 306 | -10/Materials | Build established: Mutant 495 | -10/Materials | Discovered new exit (range 7) 901 | -10/Materials | Discovered new exit (range 16) 1156 | -10/Materials | Discovered new exit (range 7) 1212 | -10/Materials | Discovered new exit (range 12) 1293 | -10/Materials | Core integrity fell below 50% 2322 | -10/Materials | Discovered new exit (range 12) 2842 | -10/Materials | Entered Mines 2843 | -10/Mines | Assembled infested the area 2872 | -10/Mines | Met a Derelict who couldn't figure out how to use a Trap Extractor 2926 | -10/Mines | Core integrity fell below 20% 3140 | -10/Mines | Destroyed by as-90735 with Assembled Rifle Last Messages --------------- 03047_ Acquired Utility Shielding. 03048_ K-01 Serf collects debris. 03051_ Acquired Lgt. Angular Momentum Engine. 03053_ K-01 Serf collects debris. 03055_ Acquired Imp. Heat Sink. 03060_ Acquired 20 matter. 03066_ Acquired Signal Interpreter. 03071_ as-96805 destroyed. 03080_ Acquired Imp. Targeting Computer. 03081_ Dropped Lgt. Treads. 03086_ System corrupted: Matter fused (-10). 03088_ Acquired Mining Laser. 03093_ Acquired 3 matter. 03096_ Acquired 7 matter. 03111_ VAA1L#NEYIPT8V#Y2LOA9O:ETS0IR 03116_ K-01 Serf collects debris. 03129_ Acquired Imp. Terrain Scanner. 03130_ System corrupted: Matter fused (-6). 03131_ K-01 Serf collects debris. 03140_ as-64446 destroyed. Map ----- +----------------------------------------------------+ | ?????????????????????????????????????????????????? | | ?????????????????????????????????????????????????? | | ??????????????????????????????????????????##?????? | | ?????????????????????????? ?????????????# ##????? | | ??????????????????????????# ??########## #????? | | ??????????????????????????# ??# # #????? | | ????????????????????????### ??## !!] #?????? | | ????????????????????????? ??# = ##????? | | ?????????????????????????## ??## = ! #????? | | ????????????????????????## #??# != # #????? | | ???????????????????? #### #### # ##????? | | ????????????????????? ###### #?????? | | ???????????????????????# #### ##?????? | | ????????????????????????# ## ##??????? | | ?????????????????????????# % #???????? | | ??????????????????????????# % #???????? | | ??????????????????????????## #???????? | | ???????????????????????????# ## #???????? | | ???????????????????????????## ### ##???????? | | ????????????????????????????## ###?# ##????????? | | ?????????????????????????????####???# #?????????? | | ????????????????????????????????????#% #?????????? | | ????????????????????????????????????# #?????????? | | ???????????????????????############## =#?????????? | | ???????????????????????# == =#?????????? | | ???????????????????????# @ %= %%=%#?????????? | | ???????????????? %! k######### ####?????????? | | ???????????? ### #???????# #????????????? | | ???????????? ????# #???????# #????????????? | | ???????????### ???????# ???????# #????????????? | | ???????????????????????# ???????# #????????????? | | ??????????????????????? ???????# #????????????? | | ??????????????????????? ???????# #????????????? | | ???????????????????????a ???????# ????????????? | | ?????????????????????? ????????##????????????? | | ?????????????????????? #?????????????????????? | | ?????????????????????? ####?????????????????????? | | ?????????????????????? #?????????????????????????? | | ????????????????????? #??????????????????????????? | | ?????????????????????#???????????????????????????? | | ?????????????????????????????????????????????????? | | ?????????????????????????????????????????????????? | | ?????????????????????????????????????????????????? | | ?????????????????????????????????????????????????? | | ?????????????????????????????????????????????????? | | ?????????????????????????????????????????????????? | | ?????????????????????????????????????????????????? | | ?????????????????????????????????????????????????? | | ?????????????????????????????????????????????????? | | ?????????????????????????????????????????????????? | +----------------------------------------------------+ Best States ------------- Heat Dissipation 25 Energy Generation 12 Energy Capacity 265 Matter Stores 300 Matter Capacity 300 Sight Range 16 Terrain Scan Density 10 Armor Coverage 150 Utility Shielding 33 Evasion (%) 45 Targeting Accuracy 6 Recoil Reduction 2 Item Schematics ----------------- None Robot Schematics ------------------ None Fabricated ------------ Nothing Alien Tech Used ----------------- None Achievements -------------- None Challenges ------------ None Game ------ Seed CannonProcessingScreen Manual? 0 Play Time 00:19:53 Cumulative 83.6 hours Start 2022.05.05 @ 20:26:49 End 2022.05.05 @ 20:47:39 Sessions 1 Manual Loads 0 Difficulty Rogue Special Mode None Game No. 90 Rogue 90 Adventurer 0 Explorer 0 Win Type - Total 0 Types 0/0/0/0/0/0/0/0/0 Lore% 25 Gallery% 34 Achievement% 28 Wizard Run 0 Options --------- ASCII 0 Keyboard 0 Movement Numpad Keybinds 0 Fullscreen 2 Font 18/Smallcaps Map View 76x50 Tactical HUD 1 Map Filters NONE Filters NONE Steam 1 RUN: fc51b1e3-2d47-496a-aded-09ad0084ef13